[Event "Titled Tuesday Blitz June 20 Late 2023"]
[White "Gubajdullin, Alexei"]
[Black "Santos Ruiz, Miguel"]
[WhiteFideId "4141202"]
[BlackFideId "22291482"]
[WhiteElo "2279"]
[BlackElo "2499"]
[Result "0-1"]
[Round "9"]
[TimeControl "180+2"]
[Date "2023.06.20"]
[WhiteClock "0:00:11"]
[BlackClock "0:00:31"]
[Board "31"]

1. d4 {[%clk 0:03:00]}  Nf6 {[%clk 0:02:59]} 2. Nf3 {[%clk 0:02:59]}  c6 {[%clk 0:02:58]} 3. Bf4 {[%clk 0:02:58]}  h6 {[%clk 0:02:58]} 4. Nbd2 {[%clk 0:02:57]}  g5 {[%clk 0:02:57]} 5. Bg3 {[%clk 0:02:57]}  d6 {[%clk 0:02:57]} 6. h3 {[%clk 0:02:54]}  Bf5 {[%clk 0:02:53]} 7. e3 {[%clk 0:02:50]}  Bg7 {[%clk 0:02:37]} 8. Bd3 {[%clk 0:02:49]}  Bxd3 {[%clk 0:02:37]} 9. cxd3 {[%clk 0:02:49]}  Nbd7 {[%clk 0:02:28]} 10. Qb3 {[%clk 0:02:47]}  Qb6 {[%clk 0:02:26]} 11. Qa3 {[%clk 0:02:45]}  d5 {[%clk 0:02:16]} 12. Nb3 {[%clk 0:02:35]}  e6 {[%clk 0:02:12]} 13. Bd6 {[%clk 0:02:33]}  Bf8 {[%clk 0:02:05]} 14. Bxf8 {[%clk 0:02:28]}  Rxf8 {[%clk 0:02:06]} 15. O-O {[%clk 0:02:05]}  a5 {[%clk 0:02:05]} 16. Rfc1 {[%clk 0:02:04]}  Qb4 {[%clk 0:02:03]} 17. Rab1 {[%clk 0:01:58]}  Ke7 {[%clk 0:02:00]} 18. Ne1 {[%clk 0:01:56]}  Qxa3 {[%clk 0:01:42]} 19. bxa3 {[%clk 0:01:55]}  Rfc8 {[%clk 0:01:39]} 20. a4 {[%clk 0:01:53]}  b6 {[%clk 0:01:38]} 21. Rc3 {[%clk 0:01:47]}  Rc7 {[%clk 0:01:34]} 22. Rbc1 {[%clk 0:01:46]}  Rac8 {[%clk 0:01:34]} 23. Nc2 {[%clk 0:01:46]}  Nb8 {[%clk 0:01:26]} 24. Na3 {[%clk 0:01:45]}  Na6 {[%clk 0:01:26]} 25. Nc2 {[%clk 0:01:31]}  c5 {[%clk 0:01:17]} 26. dxc5 {[%clk 0:01:28]}  Nxc5 {[%clk 0:01:17]} 27. Ncd4 {[%clk 0:01:25]}  Na6 {[%clk 0:01:03]} 28. Rxc7+ {[%clk 0:01:08]}  Rxc7 {[%clk 0:01:01]} 29. Rxc7+ {[%clk 0:01:04]}  Nxc7 {[%clk 0:01:02]} 30. Kf1 {[%clk 0:00:52]}  Nd7 {[%clk 0:00:59]} 31. Ke2 {[%clk 0:00:50]}  Kd6 {[%clk 0:00:59]} 32. Nb5+ {[%clk 0:00:47]}  Nxb5 {[%clk 0:00:49]} 33. axb5 {[%clk 0:00:47]}  e5 {[%clk 0:00:42]} 34. a4 {[%clk 0:00:45]}  Nc5 {[%clk 0:00:41]} 35. Nc1 {[%clk 0:00:19]}  Nxa4 {[%clk 0:00:40]} 36. Kd2 {[%clk 0:00:19]}  Kc5 {[%clk 0:00:38]} 37. d4+ {[%clk 0:00:19]}  exd4 {[%clk 0:00:34]} 38. Nb3+ {[%clk 0:00:19]}  Kxb5 {[%clk 0:00:34]} 39. Nxd4+ {[%clk 0:00:19]}  Kc4 {[%clk 0:00:35]} 40. g4 {[%clk 0:00:19]}  Nc3 {[%clk 0:00:32]} 41. Nf5 {[%clk 0:00:18]}  Ne4+ {[%clk 0:00:31]} 42. Ke2 {[%clk 0:00:17]}  a4 {[%clk 0:00:31]} 43. Nxh6 {[%clk 0:00:17]}  a3 {[%clk 0:00:30]} 44. Nxf7 {[%clk 0:00:15]}  a2 {[%clk 0:00:31]} 45. Ne5+ {[%clk 0:00:15]}  Kb5 {[%clk 0:00:31]} 46. Nf3 {[%clk 0:00:13]}  a1=Q {[%clk 0:00:30]} 47. Nd4+ {[%clk 0:00:11]}  Kc4 {[%clk 0:00:31]} 0-1


[Site "https://www.chess.com"]

[Event "Titled Tuesday Blitz June 20 Late 2023"]
[White "De La Villa Garcia, Jesus Maria"]
[Black "Velikanov, Alexander"]
[WhiteFideId "2200040"]
[BlackFideId "2039290"]
[WhiteElo "2580"]
[BlackElo "2259"]
[Result "1-0"]
[Round "9"]
[TimeControl "180+2"]
[Date "2023.06.20"]
[WhiteClock "0:01:39"]
[BlackClock "0:00:00"]
[Board "34"]

1. c4 {[%clk 0:03:00]}  e5 {[%clk 0:02:58]} 2. Nc3 {[%clk 0:03:01]}  Nf6 {[%clk 0:02:57]} 3. Nf3 {[%clk 0:03:01]}  Nc6 {[%clk 0:02:53]} 4. g3 {[%clk 0:03:02]}  Bb4 {[%clk 0:02:52]} 5. Bg2 {[%clk 0:03:02]}  O-O {[%clk 0:02:45]} 6. Nd5 {[%clk 0:03:02]}  a5 {[%clk 0:02:39]} 7. O-O {[%clk 0:02:56]}  h6 {[%clk 0:02:27]} 8. d4 {[%clk 0:02:53]}  e4 {[%clk 0:02:21]} 9. Ne5 {[%clk 0:02:48]}  Re8 {[%clk 0:02:12]} 10. Nxf6+ {[%clk 0:02:37]}  Qxf6 {[%clk 0:02:13]} 11. Bxe4 {[%clk 0:02:35]}  Nxe5 {[%clk 0:02:03]} 12. dxe5 {[%clk 0:02:36]}  Qxe5 {[%clk 0:02:03]} 13. Bg2 {[%clk 0:02:35]}  Qxe2 {[%clk 0:01:41]} 14. Qa4 {[%clk 0:02:34]}  Ra6 {[%clk 0:00:38]} 15. Be3 {[%clk 0:02:29]}  Qxb2 {[%clk 0:00:35]} 16. Rab1 {[%clk 0:02:25]}  Qe2 {[%clk 0:00:27]} 17. a3 {[%clk 0:02:24]}  Bf8 {[%clk 0:00:27]} 18. Bxb7 {[%clk 0:02:22]}  Bxb7 {[%clk 0:00:22]} 19. Rxb7 {[%clk 0:02:23]}  Rxe3 {[%clk 0:00:21]} 20. fxe3 {[%clk 0:02:24]}  Bc5 {[%clk 0:00:19]} 21. Qd1 {[%clk 0:02:16]}  Qxe3+ {[%clk 0:00:16]} 22. Kg2 {[%clk 0:02:12]}  Rd6 {[%clk 0:00:14]} 23. Rb8+ {[%clk 0:02:02]}  Kh7 {[%clk 0:00:13]} 24. Qc2+ {[%clk 0:02:03]}  Qd3 {[%clk 0:00:07]} 25. Qxd3+ {[%clk 0:01:59]}  Rxd3 {[%clk 0:00:08]} 26. Rxf7 {[%clk 0:01:59]}  Rxa3 {[%clk 0:00:03]} 27. Rxd7 {[%clk 0:01:58]}  Bd6 {[%clk 0:00:02]} 28. Rb7 {[%clk 0:01:54]}  Rc3 {[%clk 0:00:02]} 29. Ra7 {[%clk 0:01:50]}  Rxc4 {[%clk 0:00:03]} 30. Rxa5 {[%clk 0:01:50]}  Rc2+ {[%clk 0:00:04]} 31. Kh3 {[%clk 0:01:50]}  Rc3 {[%clk 0:00:03]} 32. Rf5 {[%clk 0:01:50]}  Re3 {[%clk 0:00:01]} 33. Rff7 {[%clk 0:01:50]}  Be5 {[%clk 0:00:02]} 34. Rfe7 {[%clk 0:01:50]}  Kg6 {[%clk 0:00:02]} 35. Rxc7 {[%clk 0:01:50]}  Re2 {[%clk 0:00:02]} 36. Rc5 {[%clk 0:01:49]}  Kf6 {[%clk 0:00:02]} 37. Re8 {[%clk 0:01:48]}  g5 {[%clk 0:00:02]} 38. Rc6+ {[%clk 0:01:48]}  Kf5 {[%clk 0:00:02]} 39. Rf8+ {[%clk 0:01:42]}  Ke4 {[%clk 0:00:02]} 40. Rxh6 {[%clk 0:01:41]}  Bd4 {[%clk 0:00:01]} 41. Re6+ {[%clk 0:01:39]}  Be5 {[%clk 0:00:02]} 42. Rxe5+ {[%clk 0:01:39]}  Kd4 {[%clk 0:00:01]} 43. Rxe2 {[%clk 0:01:39]}  g4+ {[%clk 0:00:00]} 44. Kxg4 {[%clk 0:01:39]} 1-0


[Site "https://www.chess.com"]

[Event "Titled Tuesday Blitz June 20 Late 2023"]
[White "Salimova, Nurgyul"]
[Black "Sharan, Rao"]
[WhiteFideId "2915138"]
[BlackFideId "5073464"]
[WhiteElo "2343"]
[BlackElo "2149"]
[Result "0-1"]
[Round "9"]
[TimeControl "180+2"]
[Date "2023.06.20"]
[WhiteClock "0:00:00"]
[BlackClock "0:02:00"]
[Board "35"]

1. e4 {[%clk 0:03:00]}  c6 {[%clk 0:02:59]} 2. d4 {[%clk 0:02:59]}  d5 {[%clk 0:03:00]} 3. f3 {[%clk 0:03:00]}  e6 {[%clk 0:02:59]} 4. Nc3 {[%clk 0:03:00]}  Nf6 {[%clk 0:02:59]} 5. e5 {[%clk 0:02:59]}  Nfd7 {[%clk 0:02:59]} 6. f4 {[%clk 0:03:00]}  c5 {[%clk 0:03:00]} 7. Nf3 {[%clk 0:03:00]}  Nc6 {[%clk 0:03:01]} 8. Be3 {[%clk 0:03:00]}  Qb6 {[%clk 0:03:01]} 9. Na4 {[%clk 0:02:59]}  Qa5+ {[%clk 0:03:02]} 10. c3 {[%clk 0:02:59]}  b6 {[%clk 0:03:02]} 11. Bd2 {[%clk 0:02:57]}  c4 {[%clk 0:03:02]} 12. b4 {[%clk 0:02:55]}  Nxb4 {[%clk 0:03:02]} 13. cxb4 {[%clk 0:02:53]}  Bxb4 {[%clk 0:03:03]} 14. Qc2 {[%clk 0:02:09]}  Bxd2+ {[%clk 0:03:03]} 15. Nxd2 {[%clk 0:02:10]}  b5 {[%clk 0:03:03]} 16. Nc3 {[%clk 0:02:09]}  b4 {[%clk 0:03:04]} 17. Ne2 {[%clk 0:02:05]}  Nb8 {[%clk 0:03:02]} 18. g3 {[%clk 0:02:00]}  Nc6 {[%clk 0:03:02]} 19. Bg2 {[%clk 0:01:57]}  Qb6 {[%clk 0:03:03]} 20. Nf3 {[%clk 0:01:56]}  a5 {[%clk 0:03:01]} 21. O-O {[%clk 0:01:54]}  a4 {[%clk 0:03:01]} 22. f5 {[%clk 0:01:54]}  exf5 {[%clk 0:03:00]} 23. Nf4 {[%clk 0:01:53]}  Be6 {[%clk 0:02:52]} 24. Kh1 {[%clk 0:01:51]}  O-O {[%clk 0:02:48]} 25. Qd2 {[%clk 0:01:43]}  b3 {[%clk 0:02:44]} 26. Nh5 {[%clk 0:01:41]}  h6 {[%clk 0:02:32]} 27. Nf6+ {[%clk 0:01:23]}  Kh8 {[%clk 0:02:32]} 28. Qf4 {[%clk 0:01:23]}  b2 {[%clk 0:02:23]} 29. Rae1 {[%clk 0:01:15]}  c3 {[%clk 0:02:22]} 30. g4 {[%clk 0:00:42]}  fxg4 {[%clk 0:02:13]} 31. Nh4 {[%clk 0:00:35]}  Qxd4 {[%clk 0:02:05]} 32. Qg3 {[%clk 0:00:20]}  c2 {[%clk 0:02:04]} 33. h3 {[%clk 0:00:12]}  b1=Q {[%clk 0:02:01]} 34. Rxb1 {[%clk 0:00:12]}  cxb1=Q {[%clk 0:02:02]} 35. Rxb1 {[%clk 0:00:13]}  Qxe5 {[%clk 0:02:02]} 36. Qd3 {[%clk 0:00:04]}  Qxf6 {[%clk 0:02:01]} 37. Rf1 {[%clk 0:00:00]}  Qxh4 {[%clk 0:02:00]} 0-1


[Site "https://www.chess.com"]

[Event "Titled Tuesday Blitz June 20 Late 2023"]
[White "Ladron De Guevara Pinto, Paolo"]
[Black "Kakabayev, Mergen"]
[WhiteFideId "2290847"]
[BlackFideId "14002990"]
[WhiteElo "2398"]
[BlackElo "2240"]
[Result "1-0"]
[Round "9"]
[TimeControl "180+2"]
[Date "2023.06.20"]
[WhiteClock "0:00:09"]
[BlackClock "0:00:09"]
[Board "37"]

1. Nf3 {[%clk 0:03:00]}  Nf6 {[%clk 0:02:59]} 2. g3 {[%clk 0:03:01]}  b5 {[%clk 0:02:59]} 3. Bg2 {[%clk 0:03:00]}  Bb7 {[%clk 0:03:00]} 4. O-O {[%clk 0:03:01]}  e6 {[%clk 0:03:00]} 5. d3 {[%clk 0:03:01]}  Be7 {[%clk 0:03:00]} 6. e4 {[%clk 0:03:01]}  O-O {[%clk 0:03:00]} 7. Re1 {[%clk 0:02:58]}  d6 {[%clk 0:03:00]} 8. a4 {[%clk 0:02:25]}  b4 {[%clk 0:02:59]} 9. a5 {[%clk 0:02:22]}  c5 {[%clk 0:02:57]} 10. Nbd2 {[%clk 0:02:10]}  a6 {[%clk 0:02:57]} 11. Nc4 {[%clk 0:02:07]}  Nbd7 {[%clk 0:02:57]} 12. Bf4 {[%clk 0:01:59]}  d5 {[%clk 0:02:47]} 13. Nd6 {[%clk 0:01:49]}  Bc6 {[%clk 0:02:44]} 14. e5 {[%clk 0:01:32]}  Ne8 {[%clk 0:02:44]} 15. Nxe8 {[%clk 0:01:28]}  Rxe8 {[%clk 0:02:45]} 16. h4 {[%clk 0:01:28]}  Nf8 {[%clk 0:02:43]} 17. h5 {[%clk 0:01:28]}  Rb8 {[%clk 0:02:35]} 18. h6 {[%clk 0:01:28]}  g6 {[%clk 0:02:33]} 19. Qd2 {[%clk 0:01:28]}  Rb5 {[%clk 0:02:31]} 20. Bg5 {[%clk 0:01:29]}  Nd7 {[%clk 0:02:21]} 21. Qf4 {[%clk 0:01:26]}  Rxa5 {[%clk 0:02:13]} 22. Bxe7 {[%clk 0:01:13]}  Rxe7 {[%clk 0:02:12]} 23. Nh2 {[%clk 0:00:41]}  Rxa1 {[%clk 0:01:56]} 24. Rxa1 {[%clk 0:00:42]}  a5 {[%clk 0:01:56]} 25. Ng4 {[%clk 0:00:42]}  a4 {[%clk 0:01:55]} 26. Nf6+ {[%clk 0:00:36]}  Nxf6 {[%clk 0:01:54]} 27. Qxf6 {[%clk 0:00:33]}  Qf8 {[%clk 0:01:54]} 28. g4 {[%clk 0:00:28]}  Ra7 {[%clk 0:01:49]} 29. g5 {[%clk 0:00:27]}  a3 {[%clk 0:01:32]} 30. bxa3 {[%clk 0:00:28]}  bxa3 {[%clk 0:01:33]} 31. Ra2 {[%clk 0:00:28]}  Ra8 {[%clk 0:01:25]} 32. c4 {[%clk 0:00:28]}  Ra7 {[%clk 0:01:04]} 33. Bh3 {[%clk 0:00:26]}  dxc4 {[%clk 0:00:50]} 34. dxc4 {[%clk 0:00:27]}  Be4 {[%clk 0:00:49]} 35. Rd2 {[%clk 0:00:13]}  a2 {[%clk 0:00:36]} 36. Rd8 {[%clk 0:00:13]}  a1=Q+ {[%clk 0:00:36]} 37. Bf1 {[%clk 0:00:10]}  Qxe5 {[%clk 0:00:09]} 38. Qxe5 {[%clk 0:00:10]}  Qxd8 {[%clk 0:00:09]} 39. Qg7# {[%clk 0:00:09]} 1-0


[Site "https://www.chess.com"]

[Event "Titled Tuesday Blitz June 20 Late 2023"]
[White "Ganiev, Roman"]
[Black "Suarez Uriel, Adrian"]
[WhiteFideId "4131452"]
[BlackFideId "22230874"]
[WhiteElo "2668"]
[BlackElo "2331"]
[Result "1/2-1/2"]
[Round "9"]
[TimeControl "180+2"]
[Date "2023.06.20"]
[WhiteClock "0:00:09"]
[BlackClock "0:00:55"]
[Board "41"]

1. e4 {[%clk 0:02:58]}  c5 {[%clk 0:03:00]} 2. Nf3 {[%clk 0:02:58]}  Nc6 {[%clk 0:02:58]} 3. Bb5 {[%clk 0:02:58]}  g6 {[%clk 0:02:58]} 4. c3 {[%clk 0:02:58]}  Nf6 {[%clk 0:02:58]} 5. e5 {[%clk 0:02:56]}  Nd5 {[%clk 0:02:58]} 6. O-O {[%clk 0:02:57]}  Bg7 {[%clk 0:02:58]} 7. Re1 {[%clk 0:02:57]}  O-O {[%clk 0:02:58]} 8. Bf1 {[%clk 0:02:53]}  d6 {[%clk 0:02:56]} 9. exd6 {[%clk 0:02:54]}  Qxd6 {[%clk 0:02:56]} 10. d3 {[%clk 0:02:49]}  Bf5 {[%clk 0:02:53]} 11. Nbd2 {[%clk 0:02:49]}  Rad8 {[%clk 0:02:49]} 12. Ne4 {[%clk 0:02:49]}  Bxe4 {[%clk 0:02:47]} 13. dxe4 {[%clk 0:02:50]}  Nc7 {[%clk 0:02:44]} 14. Bg5 {[%clk 0:02:42]}  Ne6 {[%clk 0:02:38]} 15. Bh4 {[%clk 0:02:39]}  Qf4 {[%clk 0:02:18]} 16. Qc2 {[%clk 0:02:34]}  Ne5 {[%clk 0:02:18]} 17. Nxe5 {[%clk 0:02:15]}  Qxh4 {[%clk 0:02:17]} 18. Nf3 {[%clk 0:02:12]}  Qf4 {[%clk 0:02:16]} 19. Rad1 {[%clk 0:02:11]}  h5 {[%clk 0:02:14]} 20. h3 {[%clk 0:01:47]}  h4 {[%clk 0:02:08]} 21. Rd5 {[%clk 0:01:41]}  Qc7 {[%clk 0:01:48]} 22. Nxh4 {[%clk 0:01:28]}  Nf4 {[%clk 0:01:44]} 23. Rdd1 {[%clk 0:01:28]}  c4 {[%clk 0:01:35]} 24. Nf3 {[%clk 0:01:23]}  b5 {[%clk 0:01:35]} 25. Nd4 {[%clk 0:01:08]}  Qc5 {[%clk 0:01:31]} 26. Nf3 {[%clk 0:00:58]}  Qh5 {[%clk 0:01:26]} 27. Re3 {[%clk 0:00:41]}  Bh6 {[%clk 0:01:25]} 28. Rxd8 {[%clk 0:00:28]}  Rxd8 {[%clk 0:01:25]} 29. Nd4 {[%clk 0:00:28]}  e5 {[%clk 0:01:10]} 30. Ne2 {[%clk 0:00:18]}  Nxg2 {[%clk 0:01:07]} 31. Kxg2 {[%clk 0:00:11]}  Bxe3 {[%clk 0:01:07]} 32. fxe3 {[%clk 0:00:12]}  Qg5+ {[%clk 0:01:03]} 33. Kf2 {[%clk 0:00:12]}  Rd3 {[%clk 0:01:03]} 34. Qc1 {[%clk 0:00:12]}  Qh4+ {[%clk 0:01:03]} 35. Ng3 {[%clk 0:00:11]}  f5 {[%clk 0:01:02]} 36. Bxd3 {[%clk 0:00:10]}  cxd3 {[%clk 0:01:02]} 37. exf5 {[%clk 0:00:10]}  gxf5 {[%clk 0:01:02]} 38. Kg2 {[%clk 0:00:11]}  f4 {[%clk 0:00:57]} 39. exf4 {[%clk 0:00:12]}  exf4 {[%clk 0:00:58]} 40. Nf1 {[%clk 0:00:12]}  Qg5+ {[%clk 0:00:57]} 41. Kh2 {[%clk 0:00:11]}  Qe5 {[%clk 0:00:55]} 42. Qd2 {[%clk 0:00:10]}  Qe2+ {[%clk 0:00:55]} 43. Kg1 {[%clk 0:00:09]}  f3 {[%clk 0:00:55]} 44. Qg5+ {[%clk 0:00:08]}  Kf7 {[%clk 0:00:55]} 45. Qf5+ {[%clk 0:00:07]}  Ke7 {[%clk 0:00:56]} 46. Qg5+ {[%clk 0:00:07]}  Ke6 {[%clk 0:00:56]} 47. Qg4+ {[%clk 0:00:07]}  Kd6 {[%clk 0:00:56]} 48. Qf4+ {[%clk 0:00:07]}  Kd5 {[%clk 0:00:57]} 49. Qd4+ {[%clk 0:00:07]}  Kc6 {[%clk 0:00:57]} 50. Qf6+ {[%clk 0:00:05]}  Kb7 {[%clk 0:00:56]} 51. Qf7+ {[%clk 0:00:05]}  Kb6 {[%clk 0:00:56]} 52. Qf6+ {[%clk 0:00:05]}  Ka5 {[%clk 0:00:56]} 53. Qd8+ {[%clk 0:00:06]}  Ka6 {[%clk 0:00:51]} 54. Qd6+ {[%clk 0:00:06]}  Kb7 {[%clk 0:00:51]} 55. Qd7+ {[%clk 0:00:06]}  Kb6 {[%clk 0:00:51]} 56. Qd6+ {[%clk 0:00:07]}  Ka5 {[%clk 0:00:52]} 57. Qa3+ {[%clk 0:00:07]}  Kb6 {[%clk 0:00:52]} 58. Qd6+ {[%clk 0:00:08]}  Kb7 {[%clk 0:00:53]} 59. Qd7+ {[%clk 0:00:08]}  Kb8 {[%clk 0:00:54]} 60. Qd8+ {[%clk 0:00:09]}  Kb7 {[%clk 0:00:55]} 61. Qd7+ {[%clk 0:00:09]} 1/2-1/2


[Site "https://www.chess.com"]

[Event "Titled Tuesday Blitz June 20 Late 2023"]
[White "Delorme, Axel"]
[Black "Ashraf, Artin"]
[WhiteFideId "632023"]
[BlackFideId "22514805"]
[WhiteElo "2478"]
[BlackElo "2224"]
[Result "1-0"]
[Round "9"]
[TimeControl "180+2"]
[Date "2023.06.20"]
[WhiteClock "0:00:56"]
[BlackClock "0:00:00"]
[Board "42"]

1. e4 {[%clk 0:03:00]}  c5 {[%clk 0:02:59]} 2. Nf3 {[%clk 0:03:01]}  d6 {[%clk 0:02:59]} 3. Bb5+ {[%clk 0:03:00]}  Nd7 {[%clk 0:02:59]} 4. Ba4 {[%clk 0:03:01]}  Nf6 {[%clk 0:02:53]} 5. O-O {[%clk 0:03:01]}  a6 {[%clk 0:02:47]} 6. c4 {[%clk 0:03:01]}  g6 {[%clk 0:02:44]} 7. Nc3 {[%clk 0:03:01]}  Bg7 {[%clk 0:02:45]} 8. d3 {[%clk 0:03:01]}  O-O {[%clk 0:02:45]} 9. h3 {[%clk 0:03:01]}  b6 {[%clk 0:02:40]} 10. Bg5 {[%clk 0:02:59]}  Bb7 {[%clk 0:02:39]} 11. Qd2 {[%clk 0:02:58]}  Ne5 {[%clk 0:02:38]} 12. Bd1 {[%clk 0:02:46]}  Nxf3+ {[%clk 0:02:10]} 13. Bxf3 {[%clk 0:02:47]}  Nd7 {[%clk 0:02:11]} 14. Rab1 {[%clk 0:02:42]}  b5 {[%clk 0:01:59]} 15. cxb5 {[%clk 0:02:35]}  axb5 {[%clk 0:01:58]} 16. Nxb5 {[%clk 0:02:35]}  Ne5 {[%clk 0:01:42]} 17. Nc3 {[%clk 0:02:27]}  Nxf3+ {[%clk 0:01:15]} 18. gxf3 {[%clk 0:02:28]}  Qd7 {[%clk 0:01:11]} 19. Kg2 {[%clk 0:02:24]}  f5 {[%clk 0:01:08]} 20. Bh6 {[%clk 0:02:20]}  e5 {[%clk 0:01:02]} 21. Qg5 {[%clk 0:02:12]}  f4 {[%clk 0:00:54]} 22. Bxg7 {[%clk 0:02:09]}  Kxg7 {[%clk 0:00:54]} 23. Kh2 {[%clk 0:02:07]}  Bc8 {[%clk 0:00:50]} 24. Qh4 {[%clk 0:01:59]}  Qf7 {[%clk 0:00:43]} 25. Rg1 {[%clk 0:01:54]}  Be6 {[%clk 0:00:37]} 26. a3 {[%clk 0:01:45]}  h6 {[%clk 0:00:30]} 27. Rg2 {[%clk 0:01:39]}  Kh7 {[%clk 0:00:24]} 28. Rbg1 {[%clk 0:01:38]}  Rg8 {[%clk 0:00:24]} 29. Nb5 {[%clk 0:01:26]}  Rad8 {[%clk 0:00:09]} 30. a4 {[%clk 0:01:10]}  Rd7 {[%clk 0:00:07]} 31. a5 {[%clk 0:01:09]}  Rg7 {[%clk 0:00:05]} 32. a6 {[%clk 0:01:06]}  Bb3 {[%clk 0:00:01]} 33. a7 {[%clk 0:01:03]}  Rg8 {[%clk 0:00:00]} 34. Rxg6 {[%clk 0:00:56]} 1-0


[Site "https://www.chess.com"]

[Event "Titled Tuesday Blitz June 20 Late 2023"]
[White "Mattheii"]
[Black "Koellner, Ruben Gideon"]
[BlackFideId "12993093"]
[WhiteElo "2504"]
[BlackElo "2314"]
[Result "1-0"]
[Round "9"]
[TimeControl "180+2"]
[Date "2023.06.20"]
[WhiteClock "0:00:24"]
[BlackClock "0:01:43"]
[Board "43"]

1. d4 {[%clk 0:03:00]}  d6 {[%clk 0:03:00]} 2. c4 {[%clk 0:02:58]}  e5 {[%clk 0:02:54]} 3. Nf3 {[%clk 0:02:58]}  e4 {[%clk 0:02:41]} 4. Ng5 {[%clk 0:02:58]}  f5 {[%clk 0:02:28]} 5. Nc3 {[%clk 0:02:52]}  Be7 {[%clk 0:02:27]} 6. Nh3 {[%clk 0:02:52]}  Nf6 {[%clk 0:02:28]} 7. Bg5 {[%clk 0:02:50]}  O-O {[%clk 0:02:27]} 8. e3 {[%clk 0:02:50]}  c5 {[%clk 0:02:27]} 9. Be2 {[%clk 0:02:31]}  Nc6 {[%clk 0:02:27]} 10. O-O {[%clk 0:02:24]}  h6 {[%clk 0:02:23]} 11. Bxf6 {[%clk 0:02:18]}  Bxf6 {[%clk 0:02:23]} 12. dxc5 {[%clk 0:02:07]}  Bxc3 {[%clk 0:02:23]} 13. bxc3 {[%clk 0:02:06]}  dxc5 {[%clk 0:02:23]} 14. Nf4 {[%clk 0:02:07]}  g5 {[%clk 0:02:18]} 15. Nd5 {[%clk 0:02:04]}  Be6 {[%clk 0:02:18]} 16. Qa4 {[%clk 0:01:36]}  Rc8 {[%clk 0:02:08]} 17. Rad1 {[%clk 0:01:32]}  Qe8 {[%clk 0:02:04]} 18. Rd2 {[%clk 0:00:55]}  Kf7 {[%clk 0:01:52]} 19. Bh5+ {[%clk 0:00:54]}  Kg7 {[%clk 0:01:51]} 20. Bxe8 {[%clk 0:00:54]}  Rfxe8 {[%clk 0:01:52]} 21. Rb1 {[%clk 0:00:53]}  b6 {[%clk 0:01:52]} 22. f4 {[%clk 0:00:46]}  exf3 {[%clk 0:01:51]} 23. gxf3 {[%clk 0:00:47]}  Ne5 {[%clk 0:01:51]} 24. Qxa7+ {[%clk 0:00:41]}  Kf8 {[%clk 0:01:48]} 25. Rf2 {[%clk 0:00:33]}  Nxc4 {[%clk 0:01:45]} 26. Nxb6 {[%clk 0:00:29]}  Rb8 {[%clk 0:01:43]} 27. Nd7+ {[%clk 0:00:28]}  Bxd7 {[%clk 0:01:41]} 28. Rxb8 {[%clk 0:00:29]}  Nxe3 {[%clk 0:01:39]} 29. Rxe8+ {[%clk 0:00:29]}  Kxe8 {[%clk 0:01:40]} 30. Qb8+ {[%clk 0:00:26]}  Kf7 {[%clk 0:01:39]} 31. Qc7 {[%clk 0:00:23]}  Ke6 {[%clk 0:01:37]} 32. Re2 {[%clk 0:00:23]}  f4 {[%clk 0:01:38]} 33. Rxe3+ {[%clk 0:00:22]}  fxe3 {[%clk 0:01:39]} 34. Qxc5 {[%clk 0:00:22]}  Be8 {[%clk 0:01:37]} 35. Qxe3+ {[%clk 0:00:23]}  Kd7 {[%clk 0:01:38]} 36. Kf2 {[%clk 0:00:24]}  Bf7 {[%clk 0:01:38]} 37. a4 {[%clk 0:00:24]}  Be6 {[%clk 0:01:39]} 38. a5 {[%clk 0:00:25]}  Bd5 {[%clk 0:01:39]} 39. a6 {[%clk 0:00:25]}  Kc6 {[%clk 0:01:40]} 40. a7 {[%clk 0:00:26]}  Kb7 {[%clk 0:01:40]} 41. Qc5 {[%clk 0:00:24]}  Bc6 {[%clk 0:01:39]} 42. Qxc6+ {[%clk 0:00:23]}  Kxc6 {[%clk 0:01:39]} 43. a8=Q+ {[%clk 0:00:24]}  Kd6 {[%clk 0:01:39]} 44. Qh8 {[%clk 0:00:25]}  Ke6 {[%clk 0:01:38]} 45. Qxh6+ {[%clk 0:00:26]}  Kf5 {[%clk 0:01:39]} 46. Qh3+ {[%clk 0:00:23]}  g4 {[%clk 0:01:39]} 47. Qxg4+ {[%clk 0:00:23]}  Kf6 {[%clk 0:01:39]} 48. h4 {[%clk 0:00:23]}  Ke5 {[%clk 0:01:39]} 49. h5 {[%clk 0:00:23]}  Kf6 {[%clk 0:01:40]} 50. h6 {[%clk 0:00:24]}  Ke7 {[%clk 0:01:41]} 51. h7 {[%clk 0:00:24]}  Kf8 {[%clk 0:01:42]} 52. h8=Q+ {[%clk 0:00:23]}  Kf7 {[%clk 0:01:43]} 53. Qhh5+ {[%clk 0:00:23]}  Kf8 {[%clk 0:01:43]} 54. Qh6+ {[%clk 0:00:22]}  Ke7 {[%clk 0:01:43]} 55. Qgg7+ {[%clk 0:00:23]}  Kd8 {[%clk 0:01:43]} 56. Qhh8# {[%clk 0:00:24]} 1-0


[Site "https://www.chess.com"]

[Event "Titled Tuesday Blitz June 20 Late 2023"]
[White "Lewtak, Damian"]
[Black "Taranenko, Evgueniy"]
[WhiteFideId "1141724"]
[BlackFideId "14122138"]
[WhiteElo "2302"]
[BlackElo "2101"]
[Result "1-0"]
[Round "9"]
[TimeControl "180+2"]
[Date "2023.06.20"]
[WhiteClock "0:00:37"]
[BlackClock "0:00:40"]
[Board "46"]

1. e4 {[%clk 0:03:00]}  e6 {[%clk 0:02:59]} 2. Nf3 {[%clk 0:02:53]}  d5 {[%clk 0:02:59]} 3. exd5 {[%clk 0:02:54]}  exd5 {[%clk 0:02:59]} 4. d4 {[%clk 0:02:55]}  Bd6 {[%clk 0:02:59]} 5. c4 {[%clk 0:02:55]}  dxc4 {[%clk 0:02:59]} 6. Bxc4 {[%clk 0:02:54]}  Nf6 {[%clk 0:03:00]} 7. O-O {[%clk 0:02:53]}  O-O {[%clk 0:03:00]} 8. h3 {[%clk 0:02:52]}  Nc6 {[%clk 0:03:00]} 9. Nc3 {[%clk 0:02:51]}  Bf5 {[%clk 0:03:00]} 10. Re1 {[%clk 0:02:45]}  h6 {[%clk 0:02:53]} 11. Ne5 {[%clk 0:02:27]}  Bxe5 {[%clk 0:02:47]} 12. dxe5 {[%clk 0:02:28]}  Qxd1 {[%clk 0:02:47]} 13. Nxd1 {[%clk 0:02:25]}  Rfe8 {[%clk 0:02:37]} 14. f4 {[%clk 0:02:15]}  Be6 {[%clk 0:02:17]} 15. Bf1 {[%clk 0:01:56]}  Nd5 {[%clk 0:02:08]} 16. Ne3 {[%clk 0:01:43]}  Nxf4 {[%clk 0:01:59]} 17. Bd2 {[%clk 0:01:38]}  Nxe5 {[%clk 0:01:47]} 18. Bc3 {[%clk 0:01:37]}  Nfg6 {[%clk 0:01:43]} 19. Nc2 {[%clk 0:01:31]}  Bf5 {[%clk 0:01:35]} 20. Nd4 {[%clk 0:01:29]}  Bd3 {[%clk 0:01:32]} 21. Nb5 {[%clk 0:01:28]}  Bxb5 {[%clk 0:01:29]} 22. Bxb5 {[%clk 0:01:27]}  c6 {[%clk 0:01:29]} 23. Bf1 {[%clk 0:01:26]}  Rad8 {[%clk 0:01:26]} 24. a4 {[%clk 0:01:25]}  f6 {[%clk 0:01:24]} 25. a5 {[%clk 0:01:23]}  Nf4 {[%clk 0:01:20]} 26. Ra4 {[%clk 0:01:11]}  Nd5 {[%clk 0:01:12]} 27. Bd4 {[%clk 0:01:08]}  Nf3+ {[%clk 0:01:09]} 28. gxf3 {[%clk 0:01:06]}  Rxe1 {[%clk 0:01:10]} 29. Bxa7 {[%clk 0:01:05]}  Ne3 {[%clk 0:00:58]} 30. Bxe3 {[%clk 0:00:59]}  Rxe3 {[%clk 0:00:58]} 31. Kf2 {[%clk 0:00:59]}  Rb3 {[%clk 0:00:58]} 32. Bc4+ {[%clk 0:00:59]}  Kh8 {[%clk 0:00:54]} 33. Bxb3 {[%clk 0:00:59]}  Rd2+ {[%clk 0:00:54]} 34. Ke3 {[%clk 0:00:57]}  Rxb2 {[%clk 0:00:55]} 35. Rb4 {[%clk 0:00:42]}  c5 {[%clk 0:00:49]} 36. Rxb7 {[%clk 0:00:36]}  c4 {[%clk 0:00:50]} 37. a6 {[%clk 0:00:36]}  cxb3 {[%clk 0:00:45]} 38. a7 {[%clk 0:00:36]}  Ra2 {[%clk 0:00:45]} 39. Rb8+ {[%clk 0:00:35]}  Kh7 {[%clk 0:00:46]} 40. a8=Q {[%clk 0:00:36]}  Rxa8 {[%clk 0:00:40]} 41. Rxa8 {[%clk 0:00:37]} 1-0


[Site "https://www.chess.com"]